[Event "GER-ch Youth-U14w 2022"]
[Site "Willingen"]
[Date "2022.06.05"]
[Round "1.1"]
[White "Peglau, Dora"]
[Black "Hergenroeder, Cora"]
[Result "1-0"]
[ECO "D00"]
[WhiteElo "2008"]
[BlackElo "1453"]
[Annotator "TA"]
[PlyCount "89"]
[EventDate "2022.06.05"]
[EventType "swiss"]
[EventRounds "9"]
[EventCountry "GER"]
[SourceTitle "playchess.com"]
[Source "ChessBase"]
[SourceQuality "1"]
[TimeControl "40/4500+30:900+30"]

{[%evp 19,89,15,25,0,59,52,82,7,150,152,157,166,147,119,132,125,131,134,130,122,135,128,358,346,528,494,663,654,658,621,666,687,687,686,686,670,666,637,725,719,744,677,760,756,846,833,871,853,967,900,1104,1097,1077,1070,907,847,868,873,896,879,1106,1088,2282,2479,2248,2227,1411,1172,12843,12835,2077,1942]} 1. d4 {[%emt 0:00:00]} d5 {[%emt 0:00:00]} 2. Nd2 {[%emt 0:00:00]} Nf6 {[%emt 0:00:00]} 3. Ngf3 {[%emt 0:00:00]} e6 {[%emt 0:00:00]} 4. c4 {[%emt 0:00:00]} Be7 {[%emt 0:00:00]} 5. g3 {[%emt 0:00:00]} O-O {[%emt 0:00:00]} 6. Bg2 {[%emt 0:00:00]} c5 {[%emt 0:00:00]} 7. O-O {[%emt 0:00:00]} Nc6 {[%emt 0:00:00]} 8. dxc5 {[%emt 0:00:00]} Bxc5 {[%emt 0:09:48]} 9. cxd5 {[%emt 0:03:30]} Nxd5 {[%emt 0:05:50]} 10. a3 {[%emt 0:03:11]} Be7 {[%emt 0:06:56]} 11. Qc2 {[%emt 0:03:22] E06: Closed Catalan: Early deviations.} Qb6 {[%emt 0:09:07] [#]} ({Better is} 11... Bd7 $11) 12. Nc4 $146 {[%emt 0:05:58]} ({Predecessor:} 12. e4 Nf6 13. Nc4 Qa6 14. e5 Nd5 15. Ne3 Ndb4 16. Qe4 Nd3 17. Rd1 Nc5 18. Qc2 {1-0 (51) Bogosavljevic,B (2527)-Andjic,M (1957) Sutomore 2021}) 12... Qc7 {[%emt 0:02:39] [#]} 13. e4 {[%emt 0:02:55]} (13. Bd2 $1 $16) 13... Nf6 {[%emt 0:05:36]} (13... Na5 $11) 14. Bf4 $16 {[%emt 0:00:40][%cal Bc1f4,Bf4d6,Bd6b4][%mdl 32]} Qd8 {[%emt 0:00:28]} 15. Rfd1 {[%emt 0:00:27]} Bd7 {[%emt 0:04:51]} 16. Nfe5 {[%emt 0:07:21]} Qc8 {[%emt 0:07:22]} 17. Nxd7 {0x0.002ad8356804dp-1022s more active pieces. The black rooks are badly placed.} Nxd7 {[%emt 0:00:17]} 18. Nd6 {[%emt 0:10:10]} Bxd6 {[%emt 0:00:31]} 19. Bxd6 {[%emt 0:00:46]} Re8 {[%emt 0:02:40]} 20. Rac1 {[%emt 0:02:16]} e5 $2 {[%emt 0:04:11] Black cannot hold the game after this.} (20... Nb6 $16 21. e5 Qd7 22. Bxc6 bxc6) 21. Bh3 $18 {[%emt 0:01:04]} Rd8 {[%emt 0:04:40]} (21... Nd4 $142 22. Qxc8 Rexc8) 22. Qd2 {[%emt 0:03:14] White is clearly winning.} Re8 {[%emt 0:07:08]} 23. Bb4 {[%emt 0:04:50] This bishop pair is nice.} Qd8 {[%emt 0:01:13]} 24. Qxd7 {[%emt 0:02:05]} Qxd7 {[%emt 0:00:47]} 25. Bxd7 {[%emt 0:00:17]} Red8 {[%emt 0:00:19]} 26. Bxc6 {[%emt 0:00:42]} Rxd1+ {[%emt 0:00:28]} 27. Rxd1 {[%emt 0:00:05]} bxc6 {[%mdl 4096] Endgame KRB-KR} 28. Rd7 {[%emt 0:00:48]} h6 {[%emt 0:00:50]} 29. Kf1 {[%emt 0:00:30]} f6 {[%emt 0:00:41]} 30. Ke2 {[%emt 0:00:11]} a6 {[%emt 0:00:43]} 31. Kd3 {[%emt 0:00:24]} Kh7 {[%emt 0:00:56]} 32. Bd6 {[%emt 0:01:28]} Kg6 {[%emt 0:00:38]} 33. Kc4 {[%emt 0:00:33]} Rg8 {[%emt 0:01:25]} 34. b4 {[%emt 0:01:09]} Kg5 {[%emt 0:00:16]} 35. h3 {[%emt 0:00:40]} h5 {[%emt 0:00:22]} 36. f4+ {[%emt 0:01:05]} exf4 {[%emt 0:00:24]} 37. Bxf4+ {[%emt 0:00:11]} Kg6 {[%emt 0:00:11]} 38. e5 {[%emt 0:02:21]} fxe5 {[%emt 0:00:16]} 39. Bxe5 {[%emt 0:00:08][%cal Od7g7] [#] aiming for Rxg7+!} Kh6 {[%emt 0:00:12]} 40. Rd6+ {[%emt 0:00:57]} Kh7 {[%emt 0:00:13]} 41. Rxc6 {[%emt 0:15:08]} Re8 {[%emt 0:15:19]} 42. Bd4 {[%emt 0:00:16]} Ra8 {[%emt 0:00:22]} 43. Rc7 {[%emt 0:00:13]} Rg8 {[%emt 0:00:14]} 44. a4 {[%emt 0:00:21]} Kh6 {[%emt 0:00:17]} 45. Rc6+ {[%emt 0:00:15] Weighted Error Value: White=0.15 (very precise) /Black=0.61} 1-0

[Event "GER-ch Youth-U14w 2022"]
[Site "Willingen"]
[Date "2022.06.05"]
[Round "1.2"]
[White "Eichhorn, Mathilda"]
[Black "Wartenberg, Alissa"]
[Result "1-0"]
[ECO "B40"]
[WhiteElo "1330"]
[BlackElo "1741"]
[Annotator "NA RC COMBH"]
[PlyCount "76"]
[EventDate "2022.06.05"]
[EventType "swiss"]
[EventRounds "9"]
[EventCountry "GER"]
[SourceTitle "playchess.com"]
[Source "ChessBase"]
[SourceQuality "1"]
[TimeControl "40/4500+30:900+30"]

1. e4 {[%emt 0:00:00]} c5 {[%emt 0:00:00]} 2. Nf3 {[%emt 0:00:00]} e6 {[%emt 0:00:00]} 3. d4 {[%emt 0:00:00]} cxd4 {[%emt 0:00:00]} 4. Nxd4 {[%emt 0:00:00]} Nf6 {[%emt 0:00:00]} 5. Nc3 {[%emt 0:00:00]} Nc6 {[%emt 0:00:00]} 6. Be3 {[%emt 0:00:00]} Bb4 {[%emt 0:00:00]} 7. Nxc6 {[%emt 0:00:00]} bxc6 {[%emt 0:00:00]} 8. Bd3 {[%emt 0:00:00]} d5 {[%emt 0:00:00]} 9. exd5 {[%emt 0:00:00]} cxd5 {[%emt 0:00:00]} 10. O-O {[%emt 0:00:00]} O-O {[%emt 0:00:00]} 11. Bg5 {[%emt 0:00:00]} h6 {[%emt 0:00:00]} 12. Bh4 {[%emt 0:00:13]} Bb7 {[%emt 0:00:00]} 13. a3 {[%emt 0:01:49]} Bxc3 {[%emt 0:00:00]} 14. bxc3 {[%emt 0:00:05]} e5 {[%emt 0:00:00]} 15. Rb1 {[%emt 0:02:37]} Bc6 {[%emt 0:00:14]} 16. Bb5 {[%emt 0:02:38]} Rc8 {[%emt 0:10:07]} 17. Re1 {[%emt 0:15:53]} Re8 {[%emt 0:07:59]} 18. Qf3 {[%emt 0:04:24]} e4 {[%emt 0:03:24]} 19. Qd1 {[%emt 0:10:37]} Bxb5 {[%emt 0:07:35]} 20. Bxf6 {[%emt 0:01:02]} Qxf6 {[%emt 0:00:26]} 21. Rxb5 {[%emt 0:00:38]} Qxc3 {[%emt 0:04:16]} 22. Rxd5 {[%emt 0:01:27]} Qxa3 {[%emt 0:00:21]} 23. h3 {[%emt 0:00:58]} a5 {[%emt 0:02:28]} 24. Qd2 {[%emt 0:07:06]} Ra8 {[%emt 0:03:39]} 25. Qd4 {[%emt 0:00:53]} a4 {[%emt 0:05:09]} 26. Ra1 {[%emt 0:00:49]} Qe7 {[%emt 0:06:44]} 27. Rxa4 {[%emt 0:01:15]} Rxa4 {[%emt 0:00:35]} 28. Qxa4 {[%emt 0:00:06]} e3 {[%emt 0:00:25]} 29. fxe3 {[%emt 0:02:22]} Qxe3+ {[%emt 0:00:08]} 30. Kh2 {[%emt 0:00:30]} Re4 {[%emt 0:05:40]} 31. Qa8+ {[%emt 0:03:43]} Kh7 {[%emt 0:00:13]} 32. Rf5 {[%emt 0:00:37]} Qd4 {[%emt 0:05:54]} 33. Qb8 {[%emt 0:03:18]} Re1 {[%emt 0:04:10]} 34. Qf4 {[%emt 0:04:18]} Qg1+ {[%emt 0:00:13]} 35. Kg3 {[%emt 0:00:06]} Re3+ {[%emt 0:00:54]} 36. Kh4 {[%emt 0:01:36]} g5+ {[%emt 0:00:23]} 37. Rxg5 {[%emt 0:00:32]} hxg5+ {[%emt 0:00:07]} 38. Qxg5 {[%emt 0:00:27]} Qe1+ {[%emt 0:00:16]} 1-0

[Event "GER-ch Youth-U14w 2022"]
[Site "Willingen"]
[Date "2022.06.05"]
[Round "1.3"]
[White "Trunz, Michelle"]
[Black "Steinlechner, Katja"]
[Result "1/2-1/2"]
[ECO "D20"]
[WhiteElo "1708"]
[BlackElo "1317"]
[Annotator "NA RC COMBH"]
[PlyCount "87"]
[EventDate "2022.06.05"]
[EventType "swiss"]
[EventRounds "9"]
[EventCountry "GER"]
[SourceTitle "playchess.com"]
[Source "ChessBase"]
[SourceQuality "1"]
[TimeControl "40/4500+30:900+30"]

1. d4 {[%emt 0:00:00]} d5 {[%emt 0:00:00]} 2. c4 {[%emt 0:00:00]} dxc4 {[%emt 0:00:00]} 3. e3 {[%emt 0:00:00]} Nf6 {[%emt 0:00:00]} 4. Bxc4 {[%emt 0:00:00]} e6 {[%emt 0:00:00]} 5. Nf3 {[%emt 0:00:00]} a6 {[%emt 0:00:00]} 6. O-O {[%emt 0:00:00]} b5 {[%emt 0:00:00]} 7. Bd3 {[%emt 0:00:00]} Bb7 {[%emt 0:00:00]} 8. b3 {[%emt 0:00:00]} Nbd7 {[%emt 0:00:00]} 9. Bb2 {[%emt 0:00:00]} c5 {[%emt 0:00:00]} 10. Qe2 {[%emt 0:00:00]} cxd4 {[%emt 0:04:08]} 11. Nxd4 {[%emt 0:02:54]} Be7 {[%emt 0:06:07]} 12. Rd1 {[%emt 0:01:25]} O-O {[%emt 0:07:53]} 13. Nc3 {[%emt 0:01:45]} Qb6 {[%emt 0:07:28]} 14. Rac1 {[%emt 0:01:47]} Rfd8 {[%emt 0:06:11]} 15. Bb1 {[%emt 0:32:33]} Rac8 {[%emt 0:09:04]} 16. Rc2 {[%emt 0:09:58]} Ne5 {[%emt 0:08:53]} 17. a3 {[%emt 0:07:15]} Nc6 {[%emt 0:03:24]} 18. Nxc6 {[%emt 0:09:52]} Qxc6 {[%emt 0:03:35]} 19. Nd5 {[%emt 0:01:49]} Qe8 {[%emt 0:06:36]} 20. Rxc8 {[%emt 0:01:52]} Rxc8 {[%emt 0:04:18]} 21. Nxf6+ {[%emt 0:00:34]} Bxf6 {[%emt 0:01:22]} 22. Bxf6 {[%emt 0:00:27]} gxf6 {[%emt 0:00:11]} 23. Qg4+ {[%emt 0:04:05]} Kh8 {[%emt 0:03:33]} 24. Qh4 {[%emt 0:00:32]} Qg8 {[%emt 0:02:03]} 25. Qxf6+ {[%emt 0:00:22]} Qg7 {[%emt 0:00:18]} 26. Rd8+ {[%emt 0:01:18]} Rxd8 {[%emt 0:00:38]} 27. Qxd8+ {[%emt 0:00:04]} Qg8 {[%emt 0:00:12]} 28. Qxg8+ {[%emt 0:00:05]} Kxg8 {[%emt 0:00:05]} 29. f3 {[%emt 0:00:10]} a5 {[%emt 0:01:58]} 30. b4 {[%emt 0:00:28]} axb4 {[%emt 0:00:27]} 31. axb4 {[%emt 0:00:04]} h6 {[%emt 0:00:46]} 32. e4 {[%emt 0:00:40]} e5 {[%emt 0:00:37]} 33. Kf2 {[%emt 0:00:24]} Kg7 {[%emt 0:02:59]} 34. Ba2 {[%emt 0:01:02]} f6 {[%emt 0:01:07]} 35. Be6 {[%emt 0:01:40]} Bc6 {[%emt 0:04:31]} 36. g4 {[%emt 0:02:39]} Be8 {[%emt 0:01:28]} 37. h4 {[%emt 0:01:05]} Bc6 {[%emt 0:01:21]} 38. Ke3 {[%emt 0:00:18]} Be8 {[%emt 0:01:06]} 39. f4 {[%emt 0:00:22]} Bc6 {[%emt 0:00:32]} 40. Kf3 {[%emt 0:04:00]} Be8 {[%emt 0:01:09]} 41. fxe5 {[%emt 0:18:33]} fxe5 {[%emt 0:15:18]} 42. g5 {[%emt 0:00:00]} h5 {[%emt 0:00:00]} 43. Bh3 {[%emt 0:00:00]} Kg6 {[%emt 0:00:00]} 44. Ke3 {[%emt 0:00:00]} 1/2-1/2

[Event "GER-ch Youth-U14w 2022"]
[Site "Willingen"]
[Date "2022.06.05"]
[Round "1.4"]
[White "Müller, Cosima"]
[Black "Braeutigam, Katerina"]
[Result "0-1"]
[ECO "B13"]
[WhiteElo "1389"]
[BlackElo "1860"]
[Annotator "NA RC COMBH"]
[PlyCount "92"]
[EventDate "2022.06.05"]
[EventType "swiss"]
[EventRounds "9"]
[EventCountry "GER"]
[SourceTitle "playchess.com"]
[Source "ChessBase"]
[SourceQuality "1"]
[TimeControl "40/4500+30:900+30"]

1. e4 {[%emt 0:00:00]} c6 {[%emt 0:00:00]} 2. d4 {[%emt 0:00:00]} d5 {[%emt 0:00:00]} 3. exd5 {[%emt 0:00:00]} cxd5 {[%emt 0:00:00]} 4. Bd3 {[%emt 0:00:00]} Nc6 {[%emt 0:00:00]} 5. c3 {[%emt 0:00:00]} Nf6 {[%emt 0:00:00]} 6. h3 {[%emt 0:00:00]} g6 {[%emt 0:00:00]} 7. Bg5 {[%emt 0:00:00]} Bg7 {[%emt 0:00:00]} 8. Nf3 {[%emt 0:00:00]} Bf5 {[%emt 0:00:00]} 9. Bxf5 {[%emt 0:00:00]} gxf5 {[%emt 0:00:00]} 10. Nbd2 {[%emt 0:06:53]} Qc7 {[%emt 0:00:00]} 11. Qe2 {[%emt 0:11:51]} Rc8 $14 {[%emt 0:07:10]} (11... Ne4 $11) 12. Nh4 {[%emt 0:18:55]} Qd7 {[%emt 0:05:24]} 13. Qf3 {[%emt 0:00:40]} e6 {[%emt 0:04:01]} 14. Qe2 {[%emt 0:04:11]} Qe7 {[%emt 0:22:58]} 15. Ndf3 {[%emt 0:05:02]} h6 {[%emt 0:03:48]} 16. Bf4 {[%emt 0:01:21]} Ne4 {[%emt 0:03:38]} 17. g4 {[%emt 0:04:02]} fxg4 {[%emt 0:20:04]} 18. hxg4 {[%emt 0:00:06]} Qf6 {[%emt 0:01:52]} 19. Be5 {[%emt 0:07:38]} Nxe5 {[%emt 0:01:08]} 20. Nxe5 {[%emt 0:00:07]} a6 {[%emt 0:03:44]} 21. f3 {[%emt 0:01:31]} Ng3 {[%emt 0:00:52]} 22. Qg2 {[%emt 0:00:25]} Nxh1 {[%emt 0:00:19]} 23. Qxh1 {[%emt 0:00:12]} h5 {[%emt 0:00:56]} 24. Ng2 {[%emt 0:01:33]} hxg4 {[%emt 0:00:42]} 25. Qf1 {[%emt 0:00:56]} gxf3 {[%emt 0:01:07]} 26. Nxf3 {[%emt 0:00:21]} Qf5 {[%emt 0:06:48]} 27. Rd1 {[%emt 0:06:27]} Qc2 {[%emt 0:01:50]} 28. Ng5 {[%emt 0:02:45]} Rf8 {[%emt 0:02:05]} 29. Rd2 {[%emt 0:02:19]} Qc1+ {[%emt 0:00:36]} 30. Ke2 {[%emt 0:00:24]} Qxf1+ {[%emt 0:00:09]} 31. Kxf1 {[%emt 0:00:06]} Bh6 {[%emt 0:00:10]} 32. Nf3 {[%emt 0:00:59]} Bxd2 {[%emt 0:00:06]} 33. Nxd2 {[%emt 0:00:07]} f6 {[%emt 0:00:36]} 34. Nf4 {[%emt 0:01:17]} Kd7 {[%emt 0:00:26]} 35. Nb3 {[%emt 0:00:17]} b6 {[%emt 0:00:15]} 36. a4 {[%emt 0:00:15]} Kd6 {[%emt 0:00:41]} 37. a5 {[%emt 0:01:37]} e5 {[%emt 0:00:31]} 38. Ng6 {[%emt 0:00:43]} Rg8 {[%emt 0:01:30]} 39. Nh4 {[%emt 0:01:06]} bxa5 {[%emt 0:00:33]} 40. Nc5 {[%emt 0:02:09]} Rxc5 {[%emt 0:00:58]} 41. dxc5+ {[%emt 0:15:07]} Kxc5 {[%emt 0:15:03]} 42. Nf5 {[%emt 0:00:41]} Rb8 {[%emt 0:00:00]} 43. Ne3 {[%emt 0:00:00]} Rxb2 {[%emt 0:00:00]} 44. Ke1 {[%emt 0:00:00]} d4 {[%emt 0:00:00]} 45. cxd4+ {[%emt 0:00:00]} Kxd4 {[%emt 0:00:00]} 46. Nf5+ {[%emt 0:00:00]} Kd3 {[%emt 0:00:00]} 0-1

[Event "GER-ch Youth-U14w 2022"]
[Site "Willingen"]
[Date "2022.06.05"]
[Round "1.5"]
[White "Lorenz, Veronika"]
[Black "Modali, Nikhilamrutha"]
[Result "1-0"]
[ECO "B40"]
[WhiteElo "1510"]
[BlackElo "1262"]
[Annotator "NA RC COMBH"]
[PlyCount "49"]
[EventDate "2022.06.05"]
[EventType "swiss"]
[EventRounds "9"]
[EventCountry "GER"]
[SourceTitle "playchess.com"]
[Source "ChessBase"]
[SourceQuality "1"]
[TimeControl "40/4500+30:900+30"]

1. e4 {[%emt 0:00:00]} c5 {[%emt 0:00:00]} 2. Nf3 {[%emt 0:00:00]} e6 {[%emt 0:00:00]} 3. d3 {[%emt 0:00:00]} d5 {[%emt 0:00:00]} 4. Nbd2 {[%emt 0:00:00]} Nc6 {[%emt 0:00:00]} 5. g3 {[%emt 0:00:00]} Nf6 {[%emt 0:00:00]} 6. Bg2 {[%emt 0:00:00]} dxe4 {[%emt 0:00:00]} 7. dxe4 {[%emt 0:00:00]} e5 {[%emt 0:00:38]} 8. O-O {[%emt 0:00:00]} Be7 {[%emt 0:07:35]} 9. c3 {[%emt 0:00:00]} O-O {[%emt 0:03:17]} 10. Qe2 {[%emt 0:00:00]} Rb8 {[%emt 0:16:02]} 11. Rd1 {[%emt 0:00:00]} Qc7 {[%emt 0:01:45]} 12. Nf1 {[%emt 0:01:22]} Be6 {[%emt 0:16:10]} 13. Bg5 {[%emt 0:06:29]} b5 {[%emt 0:10:05]} 14. Bxf6 {[%emt 0:02:27]} Bxf6 {[%emt 0:00:06]} 15. Ne3 {[%emt 0:01:40]} Rfd8 {[%emt 0:07:28]} 16. Rxd8+ {[%emt 0:02:11]} Bxd8 {[%emt 0:00:06]} 17. Nd5 {[%emt 0:02:07]} Bxd5 {[%emt 0:00:31]} 18. exd5 {[%emt 0:00:06]} Ne7 {[%emt 0:00:43]} 19. Nxe5 {[%emt 0:03:14]} h6 {[%emt 0:06:41]} 20. Rd1 {[%emt 0:04:44]} Nf5 {[%emt 0:01:29]} 21. Nc6 {[%emt 0:00:56]} Rb7 {[%emt 0:02:50]} 22. Qe8+ {[%emt 0:00:46]} Kh7 {[%emt 0:01:15]} 23. Qxd8 {[%emt 0:00:33]} Qd7 {[%emt 0:03:23]} 24. Qxd7 {[%emt 0:02:03]} Rxd7 {[%emt 0:00:07]} 25. Re1 {[%emt 0:01:35]} 1-0

[Event "GER-ch Youth-U14w 2022"]
[Site "Willingen"]
[Date "2022.06.05"]
[Round "1.6"]
[White "Ottlik, Marie"]
[Black "Mueller, Riyanna"]
[Result "1-0"]
[ECO "C50"]
[WhiteElo "1442"]
[BlackElo "1521"]
[Annotator "NA RC COMBH"]
[PlyCount "77"]
[EventDate "2022.06.05"]
[EventType "swiss"]
[EventRounds "9"]
[EventCountry "GER"]
[SourceTitle "playchess.com"]
[Source "ChessBase"]
[SourceQuality "1"]
[TimeControl "40/4500+30:900+30"]

1. e4 {[%emt 0:00:00]} e5 {[%emt 0:00:00]} 2. Nf3 {[%emt 0:00:00]} Nc6 {[%emt 0:00:00]} 3. Bc4 {[%emt 0:00:00]} Nf6 {[%emt 0:00:00]} 4. d3 {[%emt 0:00:00]} Bc5 {[%emt 0:00:00]} 5. c3 {[%emt 0:00:00]} d6 {[%emt 0:00:00]} 6. Bb3 {[%emt 0:00:00]} a5 {[%emt 0:00:00]} 7. a4 {[%emt 0:00:00]} O-O {[%emt 0:00:00]} 8. O-O {[%emt 0:00:00]} h6 {[%emt 0:00:00]} 9. Nbd2 {[%emt 0:00:17]} Be6 {[%emt 0:02:43]} 10. Bc2 {[%emt 0:06:48]} Re8 {[%emt 0:02:11]} 11. Re1 {[%emt 0:08:30]} Bb6 {[%emt 0:12:09]} 12. Nf1 {[%emt 0:10:09]} Qd7 {[%emt 0:17:12]} 13. Be3 {[%emt 0:24:46]} Bxe3 {[%emt 0:02:25]} 14. Nxe3 {[%emt 0:02:38]} d5 {[%emt 0:02:56]} 15. exd5 {[%emt 0:05:47]} Bxd5 {[%emt 0:06:05]} 16. Nxd5 {[%emt 0:02:51]} Nxd5 {[%emt 0:00:37]} 17. Qd2 {[%emt 0:04:00]} Qf5 {[%emt 0:09:56]} 18. d4 {[%emt 0:09:42]} e4 19. Nh4 {[%emt 0:00:48]} Qg4 {[%emt 0:01:34]} 20. g3 {[%emt 0:01:13]} Nf6 {[%emt 0:07:21]} 21. Qe2 {[%emt 0:02:54]} Qe6 {[%emt 0:02:59]} 22. Rad1 {[%emt 0:02:13]} g5 {[%emt 0:04:23]} 23. Ng2 Qh3 {[%emt 0:02:42]} 24. Ne3 {[%emt 0:01:29]} Ne7 {[%emt 0:01:33]} 25. Qf1 {[%emt 0:02:19]} Qe6 {[%emt 0:03:12]} 26. f3 {[%emt 0:00:48]} exf3 {[%emt 0:06:50]} 27. Qxf3 {[%emt 0:00:05]} Qc6 {[%emt 0:00:45]} 28. Qxc6 {[%emt 0:00:13]} Nxc6 {[%emt 0:00:04]} 29. Nf5 {[%emt 0:00:24]} h5 {[%emt 0:00:42]} 30. Kg2 {[%emt 0:00:51]} Rad8 {[%emt 0:00:35]} 31. b3 {[%emt 0:01:05]} Nd5 {[%emt 0:00:15]} 32. c4 {[%emt 0:00:40]} Ncb4 {[%emt 0:00:44]} 33. Bb1 {[%emt 0:00:38]} Nc3 {[%emt 0:00:20]} 34. Rc1 {[%emt 0:00:46]} Nxb1 {[%emt 0:01:11]} 35. Rxb1 {[%emt 0:00:09]} Nc2 {[%emt 0:00:38]} 36. Rf1 {[%emt 0:00:25]} g4 {[%emt 0:00:50]} 37. Nh6+ {[%emt 0:00:39]} Kg7 {[%emt 0:00:06]} 38. Nf5+ {[%emt 0:00:33]} Kf8 {[%emt 0:00:28]} 39. d5 {[%emt 0:00:40]} 1-0

[Event "GER-ch Youth-U14w 2022"]
[Site "Willingen"]
[Date "2022.06.05"]
[Round "1.7"]
[White "Bezsonna, Polina"]
[Black "Hoffmann, Sophia"]
[Result "1-0"]
[ECO "C55"]
[WhiteElo "1511"]
[BlackElo "1289"]
[Annotator "NA RC COMBH"]
[PlyCount "121"]
[EventDate "2022.06.05"]
[EventType "swiss"]
[EventRounds "9"]
[EventCountry "GER"]
[SourceTitle "playchess.com"]
[Source "ChessBase"]
[SourceQuality "1"]
[TimeControl "40/4500+30:900+30"]

1. e4 {[%emt 0:00:00]} e5 {[%emt 0:00:00]} 2. Nf3 {[%emt 0:00:00]} Nc6 {[%emt 0:00:00]} 3. d4 {[%emt 0:00:00]} exd4 {[%emt 0:00:00]} 4. Bc4 {[%emt 0:00:00]} Bc5 {[%emt 0:00:00]} 5. O-O {[%emt 0:00:00]} Nf6 {[%emt 0:00:00]} 6. e5 {[%emt 0:00:00]} d5 {[%emt 0:00:00]} 7. Bb5 {[%emt 0:00:00]} Ne4 {[%emt 0:00:00]} 8. Nxd4 {[%emt 0:00:00]} Bd7 {[%emt 0:00:00]} 9. Bxc6 {[%emt 0:00:00]} Bxc6 {[%emt 0:00:00]} 10. Be3 {[%emt 0:00:00]} Bxd4 {[%emt 0:00:00]} 11. Bxd4 {[%emt 0:00:00]} O-O {[%emt 0:00:00]} 12. Nd2 {[%emt 0:01:47]} Qh4 {[%emt 0:00:31]} 13. Nf3 {[%emt 0:12:52]} Qf4 {[%emt 0:16:56]} 14. g3 {[%emt 0:10:07]} Qf5 {[%emt 0:04:59]} 15. Nh4 {[%emt 0:06:08]} Qh3 {[%emt 0:11:24]} 16. f3 {[%emt 0:01:13]} Ng5 {[%emt 0:00:57]} 17. f4 {[%emt 0:13:43]} Ne4 {[%emt 0:04:12]} 18. f5 {[%emt 0:04:06]} f6 {[%emt 0:22:47]} 19. e6 {[%emt 0:01:17]} Rfe8 {[%emt 0:06:14]} 20. Ng2 {[%emt 0:11:07]} Qh6 {[%emt 0:05:52]} 21. Be3 {[%emt 0:01:06]} g5 {[%emt 0:00:37]} 22. fxg6 {[%emt 0:09:08]} Qxg6 {[%emt 0:00:27]} 23. Nh4 {[%emt 0:00:56]} Qg7 {[%emt 0:01:02]} 24. Nf5 {[%emt 0:01:11]} Qg6 {[%emt 0:02:01]} 25. Nh4 {[%emt 0:03:14]} Qg7 {[%emt 0:00:18]} 26. Qh5 {[%emt 0:01:09]} Rxe6 {[%emt 0:05:29]} 27. Bh6 {[%emt 0:00:26]} Qf7 {[%emt 0:02:02]} 28. Qg4+ {[%emt 0:00:48]} Kh8 {[%emt 0:00:39]} 29. Bg7+ {[%emt 0:01:12]} Qxg7 {[%emt 0:01:05]} 30. Qxe6 {[%emt 0:00:06]} d4 {[%emt 0:01:32]} 31. Qh3 {[%emt 0:00:41]} Qg5 {[%emt 0:01:16]} 32. Nf3 {[%emt 0:00:57]} Qe3+ {[%emt 0:00:15]} 33. Kg2 {[%emt 0:01:08]} Ng5 {[%emt 0:00:37]} 34. Qf5 {[%emt 0:00:55]} Bxf3+ {[%emt 0:00:29]} 35. Rxf3 {[%emt 0:00:37]} Nxf3 {[%emt 0:00:31]} 36. Qxf6+ {[%emt 0:00:17]} Kg8 {[%emt 0:00:03]} 37. Qxf3 {[%emt 0:00:16]} Qxf3+ 38. Kxf3 {[%emt 0:00:05]} Re8 {[%emt 0:01:18]} 39. Rd1 {[%emt 0:00:17]} c5 {[%emt 0:00:32]} 40. Kf2 {[%emt 0:00:15]} Kf7 {[%emt 0:00:48]} 41. Rd3 {[%emt 0:15:11]} Ke6 {[%emt 0:15:30]} 42. Rf3 {[%emt 0:02:19]} Re7 {[%emt 0:00:00]} 43. Ke2 {[%emt 0:00:00]} Kd5+ {[%emt 0:00:00]} 44. Kd2 {[%emt 0:00:00]} b5 {[%emt 0:00:00]} 45. Rf5+ {[%emt 0:00:00]} Kd6 {[%emt 0:00:00]} 46. b4 {[%emt 0:00:00]} c4 {[%emt 0:00:00]} 47. Rxb5 {[%emt 0:00:00]} Rf7 {[%emt 0:01:16]} 48. Ke2 {[%emt 0:00:00]} Re7+ {[%emt 0:00:47]} 49. Kd1 {[%emt 0:00:00]} Rf7 {[%emt 0:00:16]} 50. Rc5 {[%emt 0:00:00]} c3 {[%emt 0:01:05]} 51. Ke2 {[%emt 0:00:00]} Rd7 {[%emt 0:01:04]} 52. Rf5 {[%emt 0:00:00]} Ke6 {[%emt 0:00:37]} 53. Rf3 {[%emt 0:00:00]} Kd5 {[%emt 0:00:54]} 54. Kd3 {[%emt 0:00:00]} Rb7 {[%emt 0:00:35]} 55. a3 {[%emt 0:00:00]} Re7 {[%emt 0:00:26]} 56. Rf5+ {[%emt 0:00:00]} Ke6 {[%emt 0:00:21]} 57. Rh5 {[%emt 0:00:00]} Rd7 {[%emt 0:00:27]} 58. Rh4 {[%emt 0:00:00]} Ke5 {[%emt 0:00:24]} 59. Re4+ {[%emt 0:00:17]} Kf5 {[%emt 0:00:50]} 60. Rxd4 {[%emt 0:00:28]} Rc7 {[%emt 0:00:17]} 61. Rc4 {[%emt 0:01:08]} 1-0

[Event "GER-ch Youth-U14w 2022"]
[Site "Willingen"]
[Date "2022.06.05"]
[Round "1.8"]
[White "Göb, Franziska"]
[Black "Jacobasch, Ronja"]
[Result "0-1"]
[ECO "B06"]
[WhiteElo "1362"]
[BlackElo "1441"]
[Annotator "NA RC COMBH"]
[PlyCount "75"]
[EventDate "2022.06.05"]
[EventType "swiss"]
[EventRounds "9"]
[EventCountry "GER"]
[SourceTitle "playchess.com"]
[Source "ChessBase"]
[SourceQuality "1"]
[TimeControl "40/4500+30:900+30"]

1. e4 {[%emt 0:00:00]} g6 {[%emt 0:00:00]} 2. d4 {[%emt 0:00:00]} Bg7 {[%emt 0:00:00]} 3. f4 {[%emt 0:00:00]} d6 {[%emt 0:00:00]} 4. a3 {[%emt 0:00:00]} Nd7 {[%emt 0:00:00]} 5. Nf3 {[%emt 0:00:00]} c6 {[%emt 0:00:00]} 6. Nc3 {[%emt 0:00:58]} Qc7 {[%emt 0:00:00]} 7. Be3 {[%emt 0:07:59]} e5 {[%emt 0:04:02]} 8. Bd3 {[%emt 0:07:54]} Ngf6 {[%emt 0:05:26]} 9. h3 {[%emt 0:11:08]} O-O {[%emt 0:07:01]} 10. g4 {[%emt 0:06:31]} exf4 {[%emt 0:06:09]} 11. Bxf4 {[%emt 0:02:27]} Re8 {[%emt 0:03:33]} 12. Qd2 {[%emt 0:04:43]} Nd5 {[%emt 0:07:43]} 13. O-O-O {[%emt 0:10:27]} Nxf4 {[%emt 0:02:19]} 14. Qxf4 {[%emt 0:00:20]} Nf6 {[%emt 0:04:29]} 15. e5 {[%emt 0:04:44]} dxe5 {[%emt 0:05:22]} 16. Nxe5 {[%emt 0:02:15]} Nd5 {[%emt 0:03:31]} 17. Nxd5 {[%emt 0:02:16]} cxd5 {[%emt 0:00:29]} 18. Bb5 {[%emt 0:04:03]} Bxe5 {[%emt 0:04:46]} 19. dxe5 {[%emt 0:00:46]} Qxe5 {[%emt 0:02:15]} 20. Rhf1 {[%emt 0:02:39]} Qxf4+ {[%emt 0:08:25]} 21. Rxf4 {[%emt 0:00:25]} Re5 {[%emt 0:01:20]} 22. c4 {[%emt 0:02:42]} a6 {[%emt 0:01:19]} 23. Ba4 {[%emt 0:01:18]} Be6 {[%emt 0:02:49]} 24. Bb3 {[%emt 0:03:13]} dxc4 {[%emt 0:00:46]} 25. Bxc4 {[%emt 0:00:12]} Rc5 {[%emt 0:01:55]} 26. b3 b5 {[%emt 0:00:40]} 27. Kb2 {[%emt 0:02:28]} bxc4 {[%emt 0:00:20]} 28. bxc4 {[%emt 0:00:10]} Rxc4 {[%emt 0:00:47]} 29. Rxc4 {[%emt 0:00:06]} Bxc4 {[%emt 0:00:04]} 30. Rd7 {[%emt 0:00:18]} Be6 {[%emt 0:00:37]} 31. Rd4 {[%emt 0:00:19]} Rb8+ {[%emt 0:00:15]} 32. Rb4 {[%emt 0:00:09]} Rxb4+ {[%emt 0:00:09]} 33. axb4 {[%emt 0:00:05]} Kg7 {[%emt 0:00:15]} 34. Kc3 {[%emt 0:00:05]} Kf6 {[%emt 0:00:07]} 35. Kd4 {[%emt 0:00:07]} h5 {[%emt 0:00:36]} 36. Ke4 {[%emt 0:00:19]} hxg4 {[%emt 0:00:06]} 37. hxg4 {[%emt 0:00:12]} Bxg4 {[%emt 0:00:04]} 38. Kd4 0-1